[Event "Titled Tuesday Blitz May 03 Late 2022"]
[White "Gabrielian, Artur"]
[Black "Aggelis, Nikolaos"]
[WhiteFideId "4131002"]
[BlackFideId "4213220"]
[WhiteElo "2440"]
[BlackElo "2154"]
[Result "1-0"]
[Round "07"]
[TimeControl "180+1"]
[Date "2022.05.03"]
[WhiteClock "0:00:54"]
[BlackClock "0:00:08"]

1. e4 {[%clk 0:03:00]}  c5 {[%clk 0:02:31]} 2. Nf3 {[%clk 0:02:58]}  e6 {[%clk 0:02:31]} 3. d4 {[%clk 0:02:56]}  cxd4 {[%clk 0:02:32]} 4. Nxd4 {[%clk 0:02:56]}  Nf6 {[%clk 0:02:32]} 5. Nc3 {[%clk 0:02:56]}  Nc6 {[%clk 0:02:33]} 6. Qd3 {[%clk 0:02:46]}  Bb4 {[%clk 0:02:17]} 7. Bd2 {[%clk 0:02:40]}  O-O {[%clk 0:02:09]} 8. O-O-O {[%clk 0:02:36]}  a6 {[%clk 0:02:08]} 9. Nxc6 {[%clk 0:02:32]}  bxc6 {[%clk 0:02:04]} 10. e5 {[%clk 0:02:29]}  Bxc3 {[%clk 0:02:02]} 11. Bxc3 {[%clk 0:02:25]}  Nd5 {[%clk 0:02:02]} 12. Bd2 {[%clk 0:02:25]}  Qb6 {[%clk 0:01:47]} 13. c4 {[%clk 0:02:20]}  Rb8 {[%clk 0:01:46]} 14. b3 {[%clk 0:02:20]}  Nb4 {[%clk 0:01:40]} 15. Bxb4 {[%clk 0:02:19]}  Qxb4 {[%clk 0:01:40]} 16. Qd2 {[%clk 0:02:13]}  a5 {[%clk 0:01:15]} 17. Qxb4 {[%clk 0:02:02]}  axb4 {[%clk 0:01:16]} 18. Bd3 {[%clk 0:01:53]}  f6 {[%clk 0:01:16]} 19. exf6 {[%clk 0:01:49]}  Rxf6 {[%clk 0:01:14]} 20. f3 {[%clk 0:01:49]}  d5 {[%clk 0:01:13]} 21. Rhe1 {[%clk 0:01:48]}  Kf7 {[%clk 0:01:07]} 22. Kb2 {[%clk 0:01:48]}  Ba6 {[%clk 0:00:58]} 23. cxd5 {[%clk 0:01:47]}  Bxd3 {[%clk 0:00:57]} 24. dxe6+ {[%clk 0:01:46]}  Rxe6 {[%clk 0:00:58]} 25. Rxe6 {[%clk 0:01:46]}  Kxe6 {[%clk 0:00:59]} 26. Rxd3 {[%clk 0:01:46]}  c5 {[%clk 0:00:55]} 27. Re3+ {[%clk 0:01:43]}  Kd6 {[%clk 0:00:54]} 28. f4 {[%clk 0:01:43]}  Rf8 {[%clk 0:00:53]} 29. g3 {[%clk 0:01:43]}  h6 {[%clk 0:00:52]} 30. Re2 {[%clk 0:01:32]}  g5 {[%clk 0:00:51]} 31. fxg5 {[%clk 0:01:32]}  hxg5 {[%clk 0:00:52]} 32. h4 {[%clk 0:01:33]}  Rf3 {[%clk 0:00:33]} 33. Rd2+ {[%clk 0:01:30]}  Ke6 {[%clk 0:00:26]} 34. Re2+ {[%clk 0:01:22]}  Kd6 {[%clk 0:00:22]} 35. Rh2 {[%clk 0:01:03]}  Rxg3 {[%clk 0:00:20]} 36. h5 {[%clk 0:01:03]}  Rf3 {[%clk 0:00:20]} 37. h6 {[%clk 0:01:03]}  Rf8 {[%clk 0:00:21]} 38. h7 {[%clk 0:01:02]}  Rh8 {[%clk 0:00:21]} 39. Kc2 {[%clk 0:01:02]}  g4 {[%clk 0:00:22]} 40. Kd3 {[%clk 0:00:58]}  g3 {[%clk 0:00:22]} 41. Rh6+ {[%clk 0:00:58]}  Kd5 {[%clk 0:00:14]} 42. Rh5+ {[%clk 0:00:57]}  Kd6 {[%clk 0:00:15]} 43. Ke3 {[%clk 0:00:57]}  Ke6 {[%clk 0:00:08]} 44. Kf3 {[%clk 0:00:57]}  Kf6 {[%clk 0:00:08]} 45. Kxg3 {[%clk 0:00:57]}  Kg6 {[%clk 0:00:08]} 46. Kg4 {[%clk 0:00:53]}  Rxh7 {[%clk 0:00:06]} 47. Rxh7 {[%clk 0:00:53]}  Kxh7 {[%clk 0:00:07]} 48. Kf5 {[%clk 0:00:53]}  Kg7 {[%clk 0:00:08]} 49. Ke5 {[%clk 0:00:53]}  Kf7 {[%clk 0:00:08]} 50. Kd5 {[%clk 0:00:54]} 1-0


[Site "https://www.chess.com"]

[Event "Titled Tuesday Blitz May 03 Late 2022"]
[White "Gombocz, Ferenc Jr."]
[Black "Przybylski, Wojciech"]
[WhiteFideId "775029"]
[BlackFideId "1117599"]
[WhiteElo "1913"]
[BlackElo "2133"]
[Result "0-1"]
[Round "07"]
[TimeControl "180+1"]
[Date "2022.05.03"]
[WhiteClock "0:00:07"]
[BlackClock "0:00:05"]

1. c4 {[%clk 0:03:00]}  e5 {[%clk 0:02:57]} 2. g3 {[%clk 0:03:00]}  Nf6 {[%clk 0:02:56]} 3. Bg2 {[%clk 0:03:01]}  h5 {[%clk 0:02:55]} 4. h4 {[%clk 0:02:59]}  c6 {[%clk 0:02:54]} 5. Nf3 {[%clk 0:02:57]}  d6 {[%clk 0:02:53]} 6. Nc3 {[%clk 0:02:53]}  Bf5 {[%clk 0:02:52]} 7. d3 {[%clk 0:02:53]}  Qd7 {[%clk 0:02:52]} 8. e4 {[%clk 0:02:48]}  Bg4 {[%clk 0:02:52]} 9. Ne2 {[%clk 0:02:44]}  Na6 {[%clk 0:02:51]} 10. a3 {[%clk 0:02:43]}  Nc5 {[%clk 0:02:50]} 11. b4 {[%clk 0:02:41]}  Ne6 {[%clk 0:02:50]} 12. Bb2 {[%clk 0:02:38]}  c5 {[%clk 0:02:45]} 13. Qd2 {[%clk 0:02:35]}  Nd4 {[%clk 0:02:44]} 14. Bxd4 {[%clk 0:02:31]}  cxd4 {[%clk 0:02:44]} 15. O-O {[%clk 0:02:27]}  Be7 {[%clk 0:02:39]} 16. c5 {[%clk 0:02:25]}  Bh3 {[%clk 0:02:38]} 17. Bxh3 {[%clk 0:02:20]}  Qxh3 {[%clk 0:02:37]} 18. cxd6 {[%clk 0:02:20]}  Bxd6 {[%clk 0:02:36]} 19. Ng5 {[%clk 0:02:19]}  Qd7 {[%clk 0:02:33]} 20. f4 {[%clk 0:02:18]}  O-O {[%clk 0:02:29]} 21. f5 {[%clk 0:02:17]}  Ng4 {[%clk 0:02:27]} 22. Rfc1 {[%clk 0:02:09]}  Rfc8 {[%clk 0:02:08]} 23. Rxc8+ {[%clk 0:01:54]}  Rxc8 {[%clk 0:02:08]} 24. Rc1 {[%clk 0:01:54]}  Ne3 {[%clk 0:01:57]} 25. Rxc8+ {[%clk 0:01:50]}  Qxc8 {[%clk 0:01:57]} 26. Qc1 {[%clk 0:01:50]}  Qxc1+ {[%clk 0:01:52]} 27. Nxc1 {[%clk 0:01:51]}  Nc2 {[%clk 0:01:51]} 28. a4 {[%clk 0:01:51]}  Nxb4 {[%clk 0:01:48]} 29. Nf3 {[%clk 0:01:51]}  f6 {[%clk 0:01:45]} 30. Nd2 {[%clk 0:01:50]}  Kf7 {[%clk 0:01:43]} 31. Nc4 {[%clk 0:01:50]}  Bc7 {[%clk 0:01:43]} 32. Kf2 {[%clk 0:01:50]}  g6 {[%clk 0:01:31]} 33. fxg6+ {[%clk 0:01:45]}  Kxg6 {[%clk 0:01:31]} 34. Ke2 {[%clk 0:01:43]}  f5 {[%clk 0:01:30]} 35. Kd2 {[%clk 0:01:39]}  Kf6 {[%clk 0:01:26]} 36. Nb3 {[%clk 0:01:33]}  b6 {[%clk 0:01:19]} 37. Nc1 {[%clk 0:01:32]}  Na6 {[%clk 0:01:10]} 38. Nb3 {[%clk 0:01:20]}  Ke6 {[%clk 0:01:08]} 39. Na3 {[%clk 0:01:18]}  Bb8 {[%clk 0:01:03]} 40. Nb5 {[%clk 0:01:16]}  Nb4 {[%clk 0:01:01]} 41. Na3 {[%clk 0:01:10]}  Nc6 {[%clk 0:00:59]} 42. Nc4 {[%clk 0:01:07]}  Bc7 {[%clk 0:00:59]} 43. Ke2 {[%clk 0:01:03]}  Nb4 {[%clk 0:00:57]} 44. Kd2 {[%clk 0:01:02]}  Nc6 {[%clk 0:00:56]} 45. Ke2 {[%clk 0:01:02]}  Bd8 {[%clk 0:00:56]} 46. a5 {[%clk 0:00:53]}  Nb4 {[%clk 0:00:42]} 47. axb6 {[%clk 0:00:50]}  Bxb6 {[%clk 0:00:35]} 48. Nxb6 {[%clk 0:00:48]}  axb6 {[%clk 0:00:34]} 49. Nd2 {[%clk 0:00:48]}  Nc6 {[%clk 0:00:29]} 50. Nc4 {[%clk 0:00:47]}  b5 {[%clk 0:00:29]} 51. Nb6 {[%clk 0:00:45]}  Ne7 {[%clk 0:00:23]} 52. Kd2 {[%clk 0:00:43]}  Kd6 {[%clk 0:00:22]} 53. exf5 {[%clk 0:00:20]}  Nxf5 {[%clk 0:00:21]} 54. Nc8+ {[%clk 0:00:17]}  Kd7 {[%clk 0:00:20]} 55. Na7 {[%clk 0:00:17]}  Nd6 {[%clk 0:00:13]} 56. g4 {[%clk 0:00:17]}  hxg4 {[%clk 0:00:13]} 57. h5 {[%clk 0:00:18]}  Ke6 {[%clk 0:00:11]} 58. Nc6 {[%clk 0:00:17]}  Nf7 {[%clk 0:00:08]} 59. Ke2 {[%clk 0:00:16]}  Kf5 {[%clk 0:00:07]} 60. Kf2 {[%clk 0:00:16]}  Kg5 {[%clk 0:00:07]} 61. Kg3 {[%clk 0:00:16]}  Kxh5 {[%clk 0:00:07]} 62. Nb4 {[%clk 0:00:16]}  Kg5 {[%clk 0:00:07]} 63. Nd5 {[%clk 0:00:16]}  Nh6 {[%clk 0:00:07]} 64. Kg2 {[%clk 0:00:14]}  Nf5 {[%clk 0:00:07]} 65. Kf2 {[%clk 0:00:14]}  Ne3 {[%clk 0:00:07]} 66. Nb4 {[%clk 0:00:13]}  Kf5 {[%clk 0:00:07]} 67. Kg3 {[%clk 0:00:13]}  Kg5 {[%clk 0:00:07]} 68. Kf2 {[%clk 0:00:13]}  Kf4 {[%clk 0:00:07]} 69. Nc6 {[%clk 0:00:11]}  g3+ {[%clk 0:00:06]} 70. Kg1 {[%clk 0:00:12]}  Nd5 {[%clk 0:00:06]} 71. Kg2 {[%clk 0:00:11]}  b4 {[%clk 0:00:06]} 72. Na5 {[%clk 0:00:11]}  Ne3+ {[%clk 0:00:05]} 73. Kg1 {[%clk 0:00:10]}  Nc2 {[%clk 0:00:03]} 74. Nb3 {[%clk 0:00:10]}  Ne1 {[%clk 0:00:03]} 75. Nc5 {[%clk 0:00:09]}  Nf3+ {[%clk 0:00:01]} 76. Kg2 {[%clk 0:00:09]}  Nd2 {[%clk 0:00:01]} 77. Kg1 {[%clk 0:00:07]}  b3 {[%clk 0:00:01]} 78. Na4 {[%clk 0:00:07]}  Ke3 {[%clk 0:00:01]} 79. Nb2 {[%clk 0:00:08]}  Ke2 {[%clk 0:00:01]} 80. Kg2 {[%clk 0:00:08]}  e4 {[%clk 0:00:02]} 81. Kxg3 {[%clk 0:00:06]}  exd3 {[%clk 0:00:02]} 82. Kf4 {[%clk 0:00:06]}  Nf3 {[%clk 0:00:02]} 83. Ke4 {[%clk 0:00:06]}  d2 {[%clk 0:00:03]} 84. Kd5 {[%clk 0:00:05]}  d1=Q {[%clk 0:00:03]} 85. Nxd1 {[%clk 0:00:05]}  Kxd1 {[%clk 0:00:04]} 86. Kc4 {[%clk 0:00:06]}  Kc2 {[%clk 0:00:04]} 87. Kb4 {[%clk 0:00:06]}  d3 {[%clk 0:00:05]} 88. Kc4 {[%clk 0:00:07]}  b2 {[%clk 0:00:05]} 0-1


[Site "https://www.chess.com"]

[Event "Titled Tuesday Blitz May 03 Late 2022"]
[White "Gomez Dieguez, David"]
[Black "Mohammadian, Mohammad"]
[WhiteFideId "22223630"]
[BlackFideId "12566055"]
[WhiteElo "2115"]
[BlackElo "1544"]
[Result "1-0"]
[Round "07"]
[TimeControl "180+1"]
[Date "2022.05.03"]
[WhiteClock "0:01:02"]
[BlackClock "0:00:03"]

1. c4 {[%clk 0:03:00]}  Nf6 {[%clk 0:02:57]} 2. Nf3 {[%clk 0:03:00]}  g6 {[%clk 0:02:57]} 3. d4 {[%clk 0:02:59]}  Bg7 {[%clk 0:02:56]} 4. g3 {[%clk 0:03:00]}  O-O {[%clk 0:02:55]} 5. Bg2 {[%clk 0:03:00]}  c6 {[%clk 0:02:48]} 6. Nc3 {[%clk 0:02:59]}  d5 {[%clk 0:02:47]} 7. Qb3 {[%clk 0:02:59]}  dxc4 {[%clk 0:02:45]} 8. Qxc4 {[%clk 0:02:59]}  e6 {[%clk 0:02:44]} 9. O-O {[%clk 0:02:59]}  a6 {[%clk 0:02:41]} 10. Rd1 {[%clk 0:02:57]}  b5 {[%clk 0:02:39]} 11. Qb3 {[%clk 0:02:57]}  Bb7 {[%clk 0:02:35]} 12. Ne5 {[%clk 0:02:56]}  Nd5 {[%clk 0:02:29]} 13. Ne4 {[%clk 0:02:37]}  Nd7 {[%clk 0:01:43]} 14. Nxd7 {[%clk 0:02:36]}  Qxd7 {[%clk 0:01:42]} 15. Nc5 {[%clk 0:02:36]}  Qc8 {[%clk 0:01:34]} 16. e4 {[%clk 0:02:19]}  Nb6 {[%clk 0:01:29]} 17. e5 {[%clk 0:02:10]}  Nc4 {[%clk 0:01:25]} 18. Qc2 {[%clk 0:01:54]}  a5 {[%clk 0:01:24]} 19. b3 {[%clk 0:01:54]}  Nb6 {[%clk 0:01:19]} 20. a4 {[%clk 0:01:45]}  Nd5 {[%clk 0:01:18]} 21. Ba3 {[%clk 0:01:39]}  Rd8 {[%clk 0:01:13]} 22. Rac1 {[%clk 0:01:39]}  Qb8 {[%clk 0:01:05]} 23. Nxb7 {[%clk 0:01:25]}  Qxb7 {[%clk 0:01:02]} 24. Qxc6 {[%clk 0:01:25]}  Qxc6 {[%clk 0:01:00]} 25. Rxc6 {[%clk 0:01:26]}  b4 {[%clk 0:01:00]} 26. Bb2 {[%clk 0:01:22]}  Rdc8 {[%clk 0:00:54]} 27. Rdc1 {[%clk 0:01:22]}  Rxc6 {[%clk 0:00:46]} 28. Rxc6 {[%clk 0:01:23]}  Kf8 {[%clk 0:00:40]} 29. Bxd5 {[%clk 0:01:17]}  exd5 {[%clk 0:00:37]} 30. Rc5 {[%clk 0:01:18]}  Ke7 {[%clk 0:00:30]} 31. Rxd5 {[%clk 0:01:17]}  Ke6 {[%clk 0:00:30]} 32. Rc5 {[%clk 0:01:15]}  Bf8 {[%clk 0:00:22]} 33. Rc4 {[%clk 0:01:12]}  Kd5 {[%clk 0:00:20]} 34. f3 {[%clk 0:01:05]}  f5 {[%clk 0:00:17]} 35. Kf2 {[%clk 0:01:04]}  Ke6 {[%clk 0:00:16]} 36. Ke3 {[%clk 0:01:03]}  Bh6+ {[%clk 0:00:14]} 37. Kd3 {[%clk 0:01:04]}  f4 {[%clk 0:00:12]} 38. g4 {[%clk 0:01:03]}  g5 {[%clk 0:00:09]} 39. Ke4 {[%clk 0:01:03]}  Rd8 {[%clk 0:00:03]} 40. Rc6+ {[%clk 0:01:02]} 1-0


[Site "https://www.chess.com"]

[Event "Titled Tuesday Blitz May 03 Late 2022"]
[White "Gurevich, Dmitry"]
[Black "Melikhov, Evgeny V."]
[WhiteFideId "2000407"]
[BlackFideId "4122046"]
[WhiteElo "2506"]
[BlackElo "1931"]
[Result "1-0"]
[Round "07"]
[TimeControl "180+1"]
[Date "2022.05.03"]
[WhiteClock "0:01:39"]
[BlackClock "0:00:09"]

1. d4 {[%clk 0:03:00]}  Nf6 {[%clk 0:02:59]} 2. c4 {[%clk 0:03:00]}  e6 {[%clk 0:02:59]} 3. g3 {[%clk 0:02:59]}  d5 {[%clk 0:02:59]} 4. Bg2 {[%clk 0:02:59]}  dxc4 {[%clk 0:02:59]} 5. Qa4+ {[%clk 0:02:57]}  Bd7 {[%clk 0:02:57]} 6. Qxc4 {[%clk 0:02:56]}  Bc6 {[%clk 0:02:57]} 7. Nf3 {[%clk 0:02:53]}  Qd5 {[%clk 0:02:56]} 8. Qxd5 {[%clk 0:02:52]}  Bxd5 {[%clk 0:02:55]} 9. Nc3 {[%clk 0:02:52]}  Bb4 {[%clk 0:02:46]} 10. O-O {[%clk 0:02:51]}  O-O {[%clk 0:02:35]} 11. Nxd5 {[%clk 0:02:50]}  exd5 {[%clk 0:02:35]} 12. Bf4 {[%clk 0:02:49]}  c6 {[%clk 0:02:33]} 13. a3 {[%clk 0:02:48]}  Be7 {[%clk 0:02:31]} 14. b4 {[%clk 0:02:49]}  a6 {[%clk 0:02:31]} 15. Rab1 {[%clk 0:02:45]}  Nbd7 {[%clk 0:02:30]} 16. Rfc1 {[%clk 0:02:45]}  Nb6 {[%clk 0:02:25]} 17. Ne5 {[%clk 0:02:45]}  Bd6 {[%clk 0:02:20]} 18. Nd3 {[%clk 0:02:39]}  Bxf4 {[%clk 0:02:19]} 19. gxf4 {[%clk 0:02:39]}  Nc4 {[%clk 0:02:17]} 20. Rb3 {[%clk 0:02:38]}  Ne8 {[%clk 0:02:03]} 21. Ne5 {[%clk 0:02:35]}  Ned6 {[%clk 0:02:02]} 22. e3 {[%clk 0:02:31]}  f5 {[%clk 0:01:40]} 23. Bf1 {[%clk 0:02:28]}  Nd2 {[%clk 0:01:16]} 24. Rbc3 {[%clk 0:02:23]}  Nxf1 {[%clk 0:01:14]} 25. Kxf1 {[%clk 0:02:22]}  Nf7 {[%clk 0:01:00]} 26. a4 {[%clk 0:02:17]}  Nxe5 {[%clk 0:00:58]} 27. fxe5 {[%clk 0:02:16]}  Rfe8 {[%clk 0:00:48]} 28. f4 {[%clk 0:02:15]}  h6 {[%clk 0:00:45]} 29. h4 {[%clk 0:02:13]}  Kh7 {[%clk 0:00:41]} 30. h5 {[%clk 0:02:12]}  Re6 {[%clk 0:00:37]} 31. Kf2 {[%clk 0:02:11]}  g6 {[%clk 0:00:37]} 32. b5 {[%clk 0:02:08]}  cxb5 {[%clk 0:00:36]} 33. axb5 {[%clk 0:02:08]}  gxh5 {[%clk 0:00:35]} 34. Rc7+ {[%clk 0:02:07]}  Kh8 {[%clk 0:00:33]} 35. Rxb7 {[%clk 0:02:06]}  axb5 {[%clk 0:00:33]} 36. Rxb5 {[%clk 0:02:04]}  Ra2+ {[%clk 0:00:28]} 37. Kf3 {[%clk 0:02:03]}  Rg6 {[%clk 0:00:22]} 38. Rc8+ {[%clk 0:01:59]}  Kh7 {[%clk 0:00:22]} 39. Rb7+ {[%clk 0:01:59]}  Rg7 {[%clk 0:00:22]} 40. Rcc7 {[%clk 0:01:54]}  Rxc7 {[%clk 0:00:21]} 41. Rxc7+ {[%clk 0:01:54]}  Kg6 {[%clk 0:00:22]} 42. Rc6+ {[%clk 0:01:52]}  Kg7 {[%clk 0:00:21]} 43. Rf6 {[%clk 0:01:52]}  h4 {[%clk 0:00:18]} 44. Rxf5 {[%clk 0:01:52]}  Kg6 {[%clk 0:00:18]} 45. Rf6+ {[%clk 0:01:52]}  Kh5 {[%clk 0:00:17]} 46. e6 {[%clk 0:01:50]}  h3 {[%clk 0:00:18]} 47. e7 {[%clk 0:01:51]}  Ra8 {[%clk 0:00:15]} 48. Rf8 {[%clk 0:01:49]}  h2 {[%clk 0:00:15]} 49. Kg2 {[%clk 0:01:49]}  Ra2+ {[%clk 0:00:14]} 50. Kh1 {[%clk 0:01:49]}  Kh4 {[%clk 0:00:10]} 51. e8=Q {[%clk 0:01:45]}  Kg3 {[%clk 0:00:08]} 52. Qg6+ {[%clk 0:01:45]}  Kf3 {[%clk 0:00:09]} 53. Qxh6 {[%clk 0:01:41]}  Ra1+ {[%clk 0:00:08]} 54. Kxh2 {[%clk 0:01:40]}  Ra2+ {[%clk 0:00:09]} 55. Kh3 {[%clk 0:01:40]}  Ra1 {[%clk 0:00:09]} 56. Qh5+ {[%clk 0:01:39]} 1-0


[Site "https://www.chess.com"]

[Event "Titled Tuesday Blitz May 03 Late 2022"]
[White "Guz, Ari"]
[Black "Leiva, Gianmarco"]
[WhiteFideId "2825759"]
[BlackFideId "3804399"]
[WhiteElo "1913"]
[BlackElo "2323"]
[Result "1-0"]
[Round "07"]
[TimeControl "180+1"]
[Date "2022.05.03"]
[WhiteClock "0:00:20"]
[BlackClock "0:00:01"]

1. Nf3 {[%clk 0:03:00]}  Nf6 {[%clk 0:01:48]} 2. b3 {[%clk 0:02:58]}  g6 {[%clk 0:01:48]} 3. Bb2 {[%clk 0:01:49]}  Bg7 {[%clk 0:01:48]} 4. e3 {[%clk 0:01:49]}  O-O {[%clk 0:01:49]} 5. Be2 {[%clk 0:01:49]}  d6 {[%clk 0:01:45]} 6. d4 {[%clk 0:01:48]}  b6 {[%clk 0:01:43]} 7. O-O {[%clk 0:01:48]}  Bb7 {[%clk 0:01:43]} 8. c4 {[%clk 0:01:48]}  e6 {[%clk 0:01:44]} 9. Nc3 {[%clk 0:01:43]}  Ne4 {[%clk 0:01:42]} 10. Nxe4 {[%clk 0:01:42]}  Bxe4 {[%clk 0:01:42]} 11. Nd2 {[%clk 0:01:42]}  Bb7 {[%clk 0:01:34]} 12. Bf3 {[%clk 0:01:41]}  Qc8 {[%clk 0:01:35]} 13. Qc2 {[%clk 0:01:29]}  c5 {[%clk 0:01:30]} 14. Bxb7 {[%clk 0:01:25]}  Qxb7 {[%clk 0:01:30]} 15. dxc5 {[%clk 0:01:25]}  bxc5 {[%clk 0:01:28]} 16. Bxg7 {[%clk 0:01:24]}  Kxg7 {[%clk 0:01:28]} 17. Ne4 {[%clk 0:01:25]}  Qe7 {[%clk 0:01:07]} 18. Qc3+ {[%clk 0:01:13]}  e5 {[%clk 0:00:41]} 19. Rad1 {[%clk 0:01:13]}  Rd8 {[%clk 0:00:38]} 20. Rd5 {[%clk 0:00:57]}  f5 {[%clk 0:00:37]} 21. Nxc5 {[%clk 0:00:58]}  Nc6 {[%clk 0:00:15]} 22. Nd3 {[%clk 0:00:47]}  Rab8 {[%clk 0:00:13]} 23. Rd1 {[%clk 0:00:46]}  Kg8 {[%clk 0:00:11]} 24. a3 {[%clk 0:00:30]}  Rdc8 {[%clk 0:00:04]} 25. Nb4 {[%clk 0:00:29]}  Nxb4 {[%clk 0:00:04]} 26. axb4 {[%clk 0:00:30]}  Rc6 {[%clk 0:00:04]} 27. b5 {[%clk 0:00:29]}  Rcb6 {[%clk 0:00:05]} 28. Qb4 {[%clk 0:00:28]}  a6 {[%clk 0:00:04]} 29. Rxd6 {[%clk 0:00:21]}  axb5 {[%clk 0:00:02]} 30. Rxg6+ {[%clk 0:00:20]}  Rxg6 {[%clk 0:00:01]} 31. Qxe7 {[%clk 0:00:20]} 1-0


[Site "https://www.chess.com"]

[Event "Titled Tuesday Blitz May 03 Late 2022"]
[White "Hakobyan, Aram"]
[Black "Moiseenko, Alexander"]
[WhiteFideId "13306677"]
[BlackFideId "14102560"]
[WhiteElo "2557"]
[BlackElo "2577"]
[Result "1-0"]
[Round "07"]
[TimeControl "180+1"]
[Date "2022.05.03"]
[WhiteClock "0:01:16"]
[BlackClock "0:00:19"]

1. d4 {[%clk 0:03:00]}  Nf6 {[%clk 0:02:59]} 2. c4 {[%clk 0:03:00]}  c5 {[%clk 0:02:59]} 3. d5 {[%clk 0:02:57]}  b5 {[%clk 0:02:59]} 4. Qc2 {[%clk 0:02:54]}  a6 {[%clk 0:02:50]} 5. e4 {[%clk 0:02:53]}  d6 {[%clk 0:02:50]} 6. b3 {[%clk 0:02:48]}  g6 {[%clk 0:02:49]} 7. Bb2 {[%clk 0:02:48]}  Bg7 {[%clk 0:02:49]} 8. Nd2 {[%clk 0:02:49]}  O-O {[%clk 0:02:49]} 9. Ngf3 {[%clk 0:02:48]}  b4 {[%clk 0:02:38]} 10. Bd3 {[%clk 0:02:39]}  e5 {[%clk 0:02:38]} 11. a3 {[%clk 0:02:35]}  a5 {[%clk 0:02:37]} 12. axb4 {[%clk 0:02:33]}  cxb4 {[%clk 0:02:36]} 13. c5 {[%clk 0:02:34]}  Nh5 {[%clk 0:02:06]} 14. O-O {[%clk 0:02:08]}  Na6 {[%clk 0:01:57]} 15. cxd6 {[%clk 0:02:01]}  f6 {[%clk 0:01:33]} 16. Rfc1 {[%clk 0:01:59]}  Qxd6 {[%clk 0:01:29]} 17. Rxa5 {[%clk 0:01:58]}  Nf4 {[%clk 0:01:25]} 18. Bf1 {[%clk 0:01:57]}  Bb7 {[%clk 0:01:11]} 19. g3 {[%clk 0:01:53]}  Rac8 {[%clk 0:01:08]} 20. Nc4 {[%clk 0:01:53]}  Qd7 {[%clk 0:01:08]} 21. gxf4 {[%clk 0:01:40]}  Qg4+ {[%clk 0:01:08]} 22. Bg2 {[%clk 0:01:40]}  Qxf4 {[%clk 0:01:00]} 23. Qd2 {[%clk 0:01:32]}  Qxe4 {[%clk 0:00:55]} 24. Nd6 {[%clk 0:01:23]}  Rxc1+ {[%clk 0:00:53]} 25. Qxc1 {[%clk 0:01:23]}  Qe2 {[%clk 0:00:39]} 26. Nxb7 {[%clk 0:01:21]}  Nb8 {[%clk 0:00:23]} 27. d6 {[%clk 0:01:21]}  Nc6 {[%clk 0:00:20]} 28. Qxc6 {[%clk 0:01:18]}  Qxb2 {[%clk 0:00:19]} 29. d7 {[%clk 0:01:16]} 1-0


[Site "https://www.chess.com"]

[Event "Titled Tuesday Blitz May 03 Late 2022"]
[White "Herrera Reyes, Jose Antonio"]
[Black "Kamsky, Gata"]
[WhiteFideId "2274914"]
[BlackFideId "2000024"]
[WhiteElo "2361"]
[BlackElo "2645"]
[Result "0-1"]
[Round "07"]
[TimeControl "180+1"]
[Date "2022.05.03"]
[WhiteClock "0:00:07"]
[BlackClock "0:00:36"]

1. e4 {[%clk 0:03:00]}  c5 {[%clk 0:02:54]} 2. Nc3 {[%clk 0:03:00]}  Nc6 {[%clk 0:02:53]} 3. g3 {[%clk 0:02:59]}  g6 {[%clk 0:02:53]} 4. h4 {[%clk 0:02:59]}  h5 {[%clk 0:02:51]} 5. Bg2 {[%clk 0:02:59]}  d6 {[%clk 0:02:50]} 6. d3 {[%clk 0:02:59]}  Bg7 {[%clk 0:02:50]} 7. Nge2 {[%clk 0:02:58]}  Rb8 {[%clk 0:02:48]} 8. a4 {[%clk 0:02:57]}  a6 {[%clk 0:02:47]} 9. O-O {[%clk 0:02:56]}  b5 {[%clk 0:02:46]} 10. axb5 {[%clk 0:02:56]}  axb5 {[%clk 0:02:46]} 11. f4 {[%clk 0:02:57]}  b4 {[%clk 0:02:39]} 12. Nd5 {[%clk 0:02:57]}  e6 {[%clk 0:02:37]} 13. Ne3 {[%clk 0:02:56]}  Nh6 {[%clk 0:02:12]} 14. c3 {[%clk 0:02:55]}  bxc3 {[%clk 0:02:11]} 15. bxc3 {[%clk 0:02:55]}  O-O {[%clk 0:02:10]} 16. d4 {[%clk 0:02:52]}  cxd4 {[%clk 0:01:59]} 17. cxd4 {[%clk 0:02:53]}  Rb4 {[%clk 0:01:58]} 18. e5 {[%clk 0:02:49]}  dxe5 {[%clk 0:01:47]} 19. dxe5 {[%clk 0:02:43]}  Qb6 {[%clk 0:01:45]} 20. Kh1 {[%clk 0:02:34]}  Rd8 {[%clk 0:01:40]} 21. Qc2 {[%clk 0:02:31]}  Bb7 {[%clk 0:01:39]} 22. Rd1 {[%clk 0:02:07]}  Rxd1+ {[%clk 0:01:30]} 23. Qxd1 {[%clk 0:02:08]}  Bf8 {[%clk 0:01:27]} 24. Qd7 {[%clk 0:01:59]}  Kg7 {[%clk 0:01:03]} 25. Nc3 {[%clk 0:01:03]}  Nd4 {[%clk 0:00:56]} 26. Ne4 {[%clk 0:00:48]}  Bxe4 {[%clk 0:00:53]} 27. Bxe4 {[%clk 0:00:49]}  Ne2 {[%clk 0:00:51]} 28. Ra7 {[%clk 0:00:43]}  Rxe4 {[%clk 0:00:48]} 29. f5 {[%clk 0:00:40]}  Qb1 {[%clk 0:00:40]} 30. f6+ {[%clk 0:00:15]}  Kh7 {[%clk 0:00:39]} 31. Qd1 {[%clk 0:00:07]}  Rxe3 {[%clk 0:00:36]} 0-1


[Site "https://www.chess.com"]